fUSD/lending_fUSD_20241116
["ID","MTS","AMOUNT","RATE_DAILY","PERIOD"]
[342376162,1731780779693,-4548.9982866,0.0001,2]
[342376163,1731780779712,-796.57664999,0.0001,2]
[342376164,1731780779723,-579.65617,0.0001,2]
[342376165,1731780779734,-606.15728474,0.0001,2]
[342376166,1731780779744,-910.805,0.0001,2]
[342376167,1731780779785,-285.36307782,0.0001,2]
[342376169,1731780791551,4596.83535871,8.86e-05,2]
[342376170,1731780791574,1039.537352,8.86e-05,2]
[342376171,1731780791603,8125.125904,8.86e-05,2]
[342376172,1731780814319,500.0,0.00024999,120]
[342376173,1731780920318,1234.15,8.219e-05,2]
[342376178,1731781052922,4623.01,7.973e-05,2]
[342376179,1731781083040,376.1,8.219e-05,2]
[342376180,1731781116907,4589.69,7.951e-05,2]
[342376181,1731781130346,250.0,8.219e-05,2]
[342376182,1731781142939,3557.44,8.015e-05,2]
[342376183,1731781168335,7997.17,7.951e-05,2]
[342376185,1731781211434,506.75234864,0.00025,60]
[342376186,1731781274267,1777.4,7.933e-05,2]
[342376187,1731781303127,11836.31890903,8.501e-05,2]
[342376189,1731781323179,250.0,8.219e-05,2]
[342376190,1731781347797,500.0,7.949e-05,2]
[342376192,1731781467961,14717.87,7.97e-05,2]
[342376194,1731781470702,193.1,7.975e-05,2]
[342376195,1731781516132,4888.21,7.96e-05,2]
[342376196,1731781520933,1000.0,8.219e-05,2]
[342376197,1731781529797,373.85,7.989e-05,2]
[342376198,1731781553827,165.85,8.219e-05,2]
[342376199,1731781555753,383.74735203,6.94e-05,2]
[342376200,1731781626142,-156.51,8.511e-05,2]
[342376201,1731781626167,-88.4476051,8.515e-05,2]
[342376202,1731781635091,-68.0623949,8.515e-05,2]
[342376203,1731781635115,-156.51,8.519e-05,2]
[342376204,1731781635139,-156.51,8.523e-05,2]
[342376205,1731781635163,-156.51,8.527e-05,2]
[342376206,1731781635185,-156.51,8.53e-05,2]
[342376207,1731781635209,-156.51,8.534e-05,2]
[342376208,1731781635231,-179.39,8.537e-05,2]
[342376209,1731781635254,-156.51,8.538e-05,2]
[342376210,1731781635278,-156.51,8.542e-05,2]
[342376211,1731781635301,-156.51,8.546e-05,2]
[342376212,1731781635323,-156.51,8.55e-05,2]
[342376213,1731781635347,-156.51,8.554e-05,2]
[342376214,1731781635370,-6782.75202576,8.616e-05,2]
[342376215,1731781635424,-267.0234514,8.616e-05,2]
[342376216,1731781647958,1172.44,8.219e-05,2]
[342376217,1731781655426,250.0,8.259e-05,2]
[342376218,1731781675895,280.01,8.289e-05,2]
[342376219,1731781681901,200.0,8.289e-05,2]
[342376220,1731781697892,16957.44295721,0.0002,120]
[342376223,1731781715337,226.37,8.29e-05,2]
[342376233,1731781752515,699.1318717,8.501e-05,2]
[342376243,1731781755127,-1854.227552,8.596e-05,2]
[342376244,1731781755149,-1054.0,8.599e-05,2]
[342376245,1731781755169,-458.16452284,8.616e-05,2]
[342376246,1731781755190,-150.0,8.63e-05,2]
[342376247,1731781755213,-300.0,8.64e-05,2]
[342376248,1731781755234,-1757.82,8.705e-05,2]
[342376249,1731781755254,-164.13,8.925e-05,2]
[342376250,1731781755275,-167.0,8.946e-05,2]
[342376251,1731781755296,-1012.35689516,9e-05,2]
[342376252,1731781765274,-3795.81508372,9e-05,2]
[342376253,1731781765296,-500.0,9e-05,3]
[342376254,1731781765318,-2773.28588296,9e-05,2]
[342376256,1731781771113,-1712.21626837,9e-05,2]
[342376263,1731781792212,918.62,8.524e-05,2]
[342376267,1731781813893,167.02,8.78e-05,2]
[342376268,1731781818085,188.05,8.524e-05,2]
[342376281,1731781831950,-150.0,9.039e-05,2]
[342376282,1731781831961,-345971.12966857,9.04e-05,2]
[342376283,1731781831972,-13981.59895966,9.04e-05,2]
[342376284,1731781831987,-386751.6250346,9.04e-05,2]
[342376285,1731781832040,-206207.71256014,9.04e-05,2]
[342376286,1731781832059,-3192.06669998,9.04e-05,2]
[342376287,1731781832071,-4556.75,9.04e-05,2]
[342376300,1731781837863,-1053.72056961,9.04e-05,2]
[342376301,1731781837876,-474.3076,9.04e-05,2]
[342376302,1731781838293,-2272405.57890744,9.04e-05,2]
[342376303,1731781838303,-763.61,9.041e-05,2]
[342376304,1731781838312,-432.89,9.041e-05,2]
[342376305,1731781838321,-763.61,9.041e-05,2]
[342376306,1731781838331,-432.89,9.041e-05,2]
[342376307,1731781838341,-432.89,9.041e-05,2]
[342376308,1731781838351,-763.61,9.041e-05,2]
[342376309,1731781838361,-432.89,9.041e-05,2]
[342376310,1731781838370,-763.61,9.041e-05,2]
[342376311,1731781838379,-644.71,9.041e-05,2]
[342376312,1731781838389,-254.69,9.041e-05,2]
[342376313,1731781838399,-885.37,9.041e-05,2]
[342376314,1731781838409,-1054.0,9.051e-05,2]
[342376315,1731781838418,-458.53,9.054e-05,2]
[342376317,1731781838427,-1100.0,9.1e-05,3]
[342376318,1731781838436,-871.96,9.178e-05,2]
[342376319,1731781838445,-150.0,9.178e-05,2]
[342376320,1731781838455,-968.32,9.178e-05,2]
[342376321,1731781838464,-866.32,9.178e-05,2]
[342376322,1731781838474,-968.32,9.178e-05,2]
[342376323,1731781838483,-968.32,9.178e-05,2]
[342376324,1731781838492,-968.32,9.178e-05,2]
[342376325,1731781838506,-968.32,9.178e-05,2]
[342376326,1731781838515,-968.32,9.178e-05,2]
[342376327,1731781838524,-968.32,9.178e-05,2]
[342376328,1731781838536,-968.32,9.178e-05,2]
[342376330,1731781838545,-968.32,9.178e-05,2]
[342376331,1731781838555,-966.09,9.178e-05,2]
[342376332,1731781838565,-866.54,9.178e-05,2]
[342376333,1731781838574,-300.55,9.186e-05,2]
[342376334,1731781838583,-1600.0,9.2e-05,3]
[342376335,1731781838592,-167.0,9.241e-05,2]
[342376336,1731781838601,-1000.0,9.247e-05,2]
[342376337,1731781838610,-2200.0,9.3e-05,3]
[342376338,1731781838619,-4268.0,9.3e-05,2]
[342376339,1731781838629,-1677.37339294,9.388e-05,2]
[342376340,1731781838638,-4821.3468,9.389e-05,2]
[342376341,1731781838648,-73714.8112,9.389e-05,2]
[342376342,1731781838657,-510.3736,9.389e-05,2]
[342376343,1731781838667,-17930.1438,9.389e-05,2]
[342376344,1731781838676,-14110.054,9.389e-05,2]
[342376345,1731781838685,-826.4626,9.389e-05,2]
[342376346,1731781838977,-5084.8323,9.389e-05,2]
[342376347,1731781838987,-1000.0,9.389e-05,2]
[342376348,1731781838997,-2500.0,9.389e-05,2]
[342376349,1731781839007,-2800.0,9.4e-05,3]
[342376350,1731781839017,-150.0,9.448e-05,2]
[342376351,1731781839032,-588505.9743,9.489e-05,2]
[342376352,1731781839041,-100000.0,9.489e-05,2]
[342376353,1731781839050,-500.0,9.5e-05,3]
[342376354,1731781839059,-1054.0,9.528e-05,2]
[342376355,1731781839069,-167.0,9.536e-05,2]
[342376356,1731781839078,-500.0,9.563e-05,2]
[342376357,1731781839088,-648.61318201,9.563e-05,2]
[342376358,1731781839101,-500.0,9.563e-05,2]
[342376359,1731781839111,-500.0,9.563e-05,2]
[342376360,1731781839121,-500.0,9.563e-05,2]
[342376361,1731781839131,-500.0,9.589e-05,2]
[342376362,1731781839140,-501.09359182,9.589e-05,2]
[342376363,1731781839149,-500.0,9.589e-05,2]
[342376364,1731781839159,-500.0,9.589e-05,2]
[342376365,1731781839169,-612.19555778,9.589e-05,2]
[342376366,1731781839180,-500.0,9.589e-05,2]
[342376367,1731781839193,-500.0,9.589e-05,2]
[342376368,1731781839206,-500.0,9.589e-05,2]
[342376369,1731781839215,-500.0,9.589e-05,2]
[342376370,1731781839225,-500.0,9.589e-05,2]
[342376371,1731781839235,-500.0,9.589e-05,2]
[342376372,1731781839244,-500.0,9.589e-05,2]
[342376373,1731781839254,-500.0,9.589e-05,2]
[342376374,1731781839264,-233.74010255,9.589e-05,2]
[342376375,1731781839277,-500.0,9.589e-05,2]
[342376376,1731781839287,-513.5780154,9.589e-05,2]
[342376377,1731781839297,-500.0,9.589e-05,2]
[342376378,1731781839307,-195.36090791,9.589e-05,2]
[342376379,1731781839316,-500.0,9.589e-05,2]
[342376380,1731781839325,-294.68686623,9.589e-05,2]
[342376381,1731781839335,-500.0,9.589e-05,2]
[342376382,1731781839344,-500.0,9.589e-05,2]
[342376383,1731781839354,-500.0,9.589e-05,2]
[342376384,1731781839364,-500.0,9.589e-05,2]
[342376385,1731781839375,-500.0,9.589e-05,2]
[342376386,1731781839385,-500.0,9.589e-05,2]
[342376387,1731781839395,-500.0,9.589e-05,2]
[342376388,1731781839405,-445.08205693,9.589e-05,2]
[342376389,1731781839418,-528.75708362,9.589e-05,2]
[342376390,1731781839428,-267.66182216,9.589e-05,2]
[342376391,1731781839437,-557.72363908,9.589e-05,2]
[342376392,1731781839447,-500.0,9.589e-05,2]
[342376393,1731781839456,-500.0,9.589e-05,2]
[342376394,1731781839465,-500.0,9.589e-05,2]
[342376395,1731781839475,-500.0,9.589e-05,2]
[342376396,1731781839485,-598.16387183,9.589e-05,2]
[342376397,1731781839494,-500.0,9.589e-05,2]
[342376398,1731781839504,-500.0,9.589e-05,2]
[342376399,1731781839514,-500.0,9.589e-05,2]
[342376400,1731781839523,-242.716862,9.589e-05,2]
[342376401,1731781839535,-500.0,9.589e-05,2]
[342376402,1731781839544,-500.0,9.589e-05,2]
[342376403,1731781839556,-500.0,9.589e-05,2]
[342376404,1731781839567,-500.0,9.589e-05,2]
[342376405,1731781839576,-281.07874731,9.589e-05,2]
[342376406,1731781839586,-500.0,9.589e-05,2]
[342376407,1731781839595,-500.0,9.589e-05,2]
[342376408,1731781839605,-500.0,9.589e-05,2]
[342376409,1731781839614,-500.0,9.589e-05,2]
[342376410,1731781839624,-500.0,9.589e-05,2]
[342376411,1731781839633,-500.0,9.589e-05,2]
[342376413,1731781839642,-500.0,9.589e-05,2]
[342376415,1731781839652,-500.0,9.589e-05,2]
[342376416,1731781839662,-500.0,9.589e-05,2]
[342376417,1731781839671,-500.0,9.589e-05,2]
[342376418,1731781839680,-500.0,9.589e-05,2]
[342376419,1731781839690,-500.0,9.589e-05,2]
[342376420,1731781839699,-500.0,9.589e-05,2]
[342376421,1731781839710,-500.0,9.589e-05,2]
[342376423,1731781839719,-500.0,9.589e-05,2]
[342376425,1731781839728,-500.0,9.589e-05,2]
[342376426,1731781839738,-500.0,9.589e-05,2]
[342376427,1731781839747,-500.0,9.589e-05,2]
[342376428,1731781839757,-500.0,9.589e-05,2]
[342376429,1731781839767,-517.89588528,9.589e-05,2]
[342376430,1731781839777,-500.0,9.589e-05,2]
[342376431,1731781839786,-500.0,9.589e-05,2]
[342376432,1731781839795,-500.0,9.589e-05,2]
[342376433,1731781839805,-500.0,9.589e-05,2]
[342376434,1731781839815,-500.0,9.589e-05,2]
[342376435,1731781839824,-500.0,9.589e-05,2]
[342376436,1731781839836,-500.0,9.589e-05,2]
[342376437,1731781839845,-500.0,9.589e-05,2]
[342376438,1731781839855,-500.0,9.589e-05,2]
[342376439,1731781839864,-500.0,9.589e-05,2]
[342376440,1731781839874,-500.0,9.589e-05,2]
[342376441,1731781839884,-500.0,9.589e-05,2]
[342376442,1731781839893,-496.09983927,9.589e-05,2]
[342376443,1731781839906,-500.0,9.589e-05,2]
[342376444,1731781839916,-500.0,9.589e-05,2]
[342376445,1731781839926,-469.63852214,9.589e-05,2]
[342376446,1731781839936,-500.0,9.589e-05,2]
[342376447,1731781839946,-500.0,9.589e-05,2]
[342376448,1731781839956,-500.0,9.589e-05,2]
[342376449,1731781839965,-500.0,9.589e-05,2]
[342376450,1731781839975,-500.0,9.589e-05,2]
[342376451,1731781839984,-500.0,9.589e-05,2]
[342376452,1731781839993,-500.0,9.589e-05,2]
[342376453,1731781840003,-500.0,9.589e-05,2]
[342376454,1731781840013,-500.0,9.589e-05,2]
[342376455,1731781840028,-500.0,9.589e-05,2]
[342376456,1731781840037,-500.0,9.589e-05,2]
[342376457,1731781840047,-500.0,9.589e-05,2]
[342376458,1731781840057,-500.0,9.589e-05,2]
[342376459,1731781840069,-500.0,9.589e-05,2]
[342376460,1731781840079,-500.0,9.589e-05,2]
[342376461,1731781840089,-500.0,9.589e-05,2]
[342376462,1731781840101,-500.0,9.589e-05,2]
[342376463,1731781840115,-500.0,9.589e-05,2]
[342376464,1731781840126,-500.0,9.589e-05,2]
[342376465,1731781840136,-500.0,9.589e-05,2]
[342376466,1731781840147,-500.0,9.589e-05,2]
[342376467,1731781840157,-584.22,9.589e-05,2]
[342376468,1731781840168,-500.0,9.589e-05,2]
[342376470,1731781840178,-500.0,9.589e-05,2]
[342376471,1731781840189,-500.0,9.589e-05,2]
[342376473,1731781840199,-500.0,9.589e-05,2]
[342376474,1731781840208,-500.0,9.589e-05,2]
[342376476,1731781840219,-500.0,9.589e-05,2]
[342376477,1731781840230,-470.09715896,9.589e-05,2]
[342376479,1731781840240,-506.46,9.589e-05,2]
[342376480,1731781840250,-500.0,9.589e-05,2]
[342376481,1731781840260,-500.0,9.589e-05,2]
[342376482,1731781840270,-500.0,9.589e-05,2]
[342376483,1731781840281,-500.0,9.589e-05,2]
[342376484,1731781840291,-500.0,9.589e-05,2]
[342376485,1731781840302,-500.0,9.589e-05,2]
[342376486,1731781840313,-484.88679893,9.589e-05,2]
[342376487,1731781840322,-500.0,9.589e-05,2]
[342376488,1731781840332,-500.0,9.589e-05,2]
[342376489,1731781840342,-500.0,9.589e-05,2]
[342376490,1731781840352,-500.0,9.589e-05,2]
[342376491,1731781840362,-500.0,9.589e-05,2]
[342376492,1731781840371,-500.0,9.589e-05,2]
[342376493,1731781840381,-546.92,9.589e-05,2]
[342376494,1731781840391,-500.0,9.589e-05,2]
[342376495,1731781840401,-500.0,9.589e-05,2]
[342376496,1731781840411,-500.0,9.589e-05,2]
[342376497,1731781840421,-500.0,9.589e-05,2]
[342376498,1731781840431,-500.0,9.589e-05,2]
[342376499,1731781840440,-500.0,9.589e-05,2]
[342376500,1731781840450,-500.0,9.589e-05,2]
[342376501,1731781840460,-500.0,9.589e-05,2]
[342376502,1731781840470,-500.0,9.589e-05,2]
[342376503,1731781840479,-500.0,9.589e-05,2]
[342376504,1731781840488,-500.0,9.589e-05,2]
[342376505,1731781840498,-500.0,9.589e-05,2]
[342376506,1731781840507,-273.85,9.589e-05,2]
[342376507,1731781840516,-558.28,9.589e-05,2]
[342376508,1731781840526,-500.0,9.589e-05,2]
[342376509,1731781840537,-500.0,9.589e-05,2]
[342376510,1731781840547,-500.0,9.589e-05,2]
[342376511,1731781840556,-455.68,9.589e-05,2]
[342376512,1731781840566,-500.0,9.589e-05,2]
[342376513,1731781840576,-283.12,9.589e-05,2]
[342376514,1731781840585,-535.92132591,9.589e-05,2]
[342376515,1731781840595,-500.0,9.589e-05,2]
[342376516,1731781840605,-500.0,9.589e-05,2]
[342376517,1731781840617,-500.0,9.589e-05,2]
[342376518,1731781840626,-500.0,9.589e-05,2]
[342376519,1731781840636,-297.8485057,9.589e-05,2]
[342376520,1731781840646,-500.0,9.589e-05,2]
[342376521,1731781840656,-500.0,9.589e-05,2]
[342376522,1731781840665,-500.0,9.589e-05,2]
[342376523,1731781840675,-500.0,9.589e-05,2]
[342376524,1731781840685,-500.0,9.589e-05,2]
[342376525,1731781840695,-500.0,9.589e-05,2]
[342376526,1731781840705,-500.0,9.589e-05,2]
[342376527,1731781840716,-500.0,9.589e-05,2]
[342376528,1731781840727,-500.0,9.589e-05,2]
[342376529,1731781840736,-478.90221978,9.589e-05,2]
[342376530,1731781840746,-543.58,9.589e-05,2]
[342376531,1731781840756,-543.58,9.589e-05,2]
[342376532,1731781840766,-543.58,9.589e-05,2]
[342376533,1731781840775,-543.58,9.589e-05,2]
[342376534,1731781840787,-500.0,9.589e-05,2]
[342376535,1731781840797,-543.58,9.589e-05,2]
[342376536,1731781840807,-500.0,9.589e-05,2]
[342376537,1731781840817,-543.58,9.589e-05,2]
[342376538,1731781840826,-500.0,9.589e-05,2]
[342376539,1731781840836,-543.58,9.589e-05,2]
[342376540,1731781840847,-500.0,9.589e-05,2]
[342376541,1731781840857,-543.58,9.589e-05,2]
[342376542,1731781840866,-500.0,9.589e-05,2]
[342376543,1731781840876,-500.0,9.589e-05,2]
[342376544,1731781840886,-543.58,9.589e-05,2]
[342376545,1731781840896,-500.0,9.589e-05,2]
[342376546,1731781840906,-500.0,9.589e-05,2]
[342376547,1731781840916,-543.58,9.589e-05,2]
[342376548,1731781840926,-500.0,9.589e-05,2]
[342376549,1731781840936,-543.58,9.589e-05,2]
[342376550,1731781840946,-500.0,9.589e-05,2]
[342376551,1731781840956,-500.0,9.589e-05,2]
[342376552,1731781840966,-543.58,9.589e-05,2]
[342376553,1731781840975,-500.0,9.589e-05,2]
[342376554,1731781840985,-500.0,9.589e-05,2]
[342376555,1731781840995,-543.58,9.589e-05,2]
[342376556,1731781841004,-429.46,9.589e-05,2]
[342376557,1731781841013,-500.0,9.589e-05,2]
[342376558,1731781841023,-500.0,9.589e-05,2]
[342376559,1731781841039,-500.0,9.589e-05,2]
[342376560,1731781841048,-425.57632619,9.589e-05,2]
[342376561,1731781841057,-569.15465902,9.589e-05,2]
[342376562,1731781841068,-500.0,9.589e-05,2]
[342376563,1731781841079,-500.0,9.589e-05,2]
[342376564,1731781841088,-523.81913854,9.589e-05,2]
[342376565,1731781841098,-500.0,9.589e-05,2]
[342376566,1731781841109,-543.12,9.589e-05,2]
[342376567,1731781841118,-500.0,9.589e-05,2]
[342376568,1731781841128,-500.0,9.589e-05,2]
[342376569,1731781841138,-500.0,9.589e-05,2]
[342376570,1731781841148,-500.0,9.589e-05,2]
[342376571,1731781841159,-500.0,9.589e-05,2]
[342376572,1731781841170,-500.0,9.589e-05,2]
[342376573,1731781841179,-500.0,9.589e-05,2]
[342376574,1731781841189,-500.0,9.589e-05,2]
[342376575,1731781841199,-500.0,9.589e-05,2]
[342376576,1731781841209,-500.0,9.589e-05,2]
[342376577,1731781841221,-500.0,9.589e-05,2]
[342376578,1731781841239,-500.0,9.589e-05,2]
[342376579,1731781841248,-500.0,9.589e-05,2]
[342376580,1731781841258,-500.0,9.589e-05,2]
[342376581,1731781841268,-500.0,9.589e-05,2]
[342376582,1731781841278,-500.0,9.589e-05,2]
[342376583,1731781841289,-500.0,9.589e-05,2]
[342376584,1731781841299,-500.0,9.589e-05,2]
[342376585,1731781841309,-500.0,9.589e-05,2]
[342376586,1731781841318,-518.83,9.589e-05,2]
[342376587,1731781841328,-500.0,9.589e-05,2]
[342376588,1731781841338,-500.0,9.589e-05,2]
[342376589,1731781841348,-500.0,9.589e-05,2]
[342376590,1731781841358,-500.0,9.589e-05,2]
[342376591,1731781841368,-500.0,9.589e-05,2]
[342376592,1731781841377,-500.0,9.589e-05,2]
[342376593,1731781841387,-500.0,9.589e-05,2]
[342376594,1731781841396,-500.0,9.589e-05,2]
[342376595,1731781841406,-500.0,9.589e-05,2]
[342376596,1731781841415,-500.0,9.589e-05,2]
[342376597,1731781841424,-500.0,9.589e-05,2]
[342376598,1731781841434,-500.0,9.589e-05,2]
[342376599,1731781841443,-500.0,9.589e-05,2]
[342376600,1731781841453,-500.0,9.589e-05,2]
[342376601,1731781841464,-500.0,9.589e-05,2]
[342376602,1731781841474,-391.39,9.589e-05,2]
[342376603,1731781841484,-500.0,9.589e-05,2]
[342376604,1731781841494,-500.0,9.589e-05,2]
[342376605,1731781841503,-500.0,9.589e-05,2]
[342376606,1731781841513,-500.0,9.589e-05,2]
[342376607,1731781841522,-500.0,9.589e-05,2]
[342376608,1731781841533,-500.0,9.589e-05,2]
[342376609,1731781841545,-500.0,9.589e-05,2]
[342376610,1731781841555,-500.0,9.589e-05,2]
[342376611,1731781841565,-500.0,9.589e-05,2]
[342376612,1731781841574,-500.0,9.589e-05,2]
[342376613,1731781841584,-500.0,9.589e-05,2]
[342376614,1731781841594,-500.0,9.589e-05,2]
[342376615,1731781841603,-363.44,9.589e-05,2]
[342376616,1731781841613,-500.0,9.589e-05,2]
[342376617,1731781841633,-609.97441185,9.589e-05,2]
[342376618,1731781841649,-500.0,9.589e-05,2]
[342376619,1731781841661,-500.0,9.589e-05,2]
[342376620,1731781841675,-500.0,9.589e-05,2]
[342376621,1731781841687,-500.0,9.589e-05,2]
[342376622,1731781841699,-352.2,9.589e-05,2]
[342376623,1731781841710,-500.0,9.589e-05,2]
[342376624,1731781841722,-594.25650304,9.589e-05,2]
[342376625,1731781841734,-500.0,9.589e-05,2]
[342376626,1731781841747,-500.0,9.589e-05,2]
[342376627,1731781841758,-500.0,9.589e-05,2]
[342376628,1731781841769,-500.0,9.589e-05,2]
[342376629,1731781841782,-500.0,9.589e-05,2]
[342376630,1731781841792,-500.0,9.589e-05,2]
[342376631,1731781841801,-500.0,9.589e-05,2]
[342376632,1731781841811,-500.0,9.589e-05,2]
[342376633,1731781841820,-500.0,9.589e-05,2]
[342376634,1731781841831,-500.0,9.589e-05,2]
[342376635,1731781841841,-500.0,9.589e-05,2]
[342376636,1731781841850,-500.0,9.589e-05,2]
[342376637,1731781841860,-500.0,9.589e-05,2]
[342376638,1731781841871,-570.46,9.589e-05,2]
[342376639,1731781841880,-500.0,9.589e-05,2]
[342376640,1731781841890,-500.0,9.589e-05,2]
[342376641,1731781841899,-500.0,9.589e-05,2]
[342376642,1731781841908,-409.9815962,9.589e-05,2]
[342376643,1731781841918,-500.0,9.589e-05,2]
[342376644,1731781841928,-500.0,9.589e-05,2]
[342376645,1731781841937,-500.0,9.589e-05,2]
[342376646,1731781841947,-500.0,9.589e-05,2]
[342376647,1731781841956,-500.0,9.589e-05,2]
[342376648,1731781841966,-500.0,9.589e-05,2]
[342376649,1731781841976,-500.0,9.589e-05,2]
[342376650,1731781841985,-417.09969669,9.589e-05,2]
[342376651,1731781841995,-151.2,9.589e-05,2]
[342376652,1731781842004,-500.0,9.589e-05,2]
[342376653,1731781842013,-513.26,9.589e-05,2]
[342376654,1731781842028,-500.0,9.589e-05,2]
[342376655,1731781842038,-500.0,9.589e-05,2]
[342376656,1731781842048,-500.0,9.589e-05,2]
[342376657,1731781842058,-500.0,9.589e-05,2]
[342376658,1731781842066,-500.0,9.589e-05,2]
[342376659,1731781842076,-500.0,9.589e-05,2]
[342376660,1731781842086,-500.0,9.589e-05,2]
[342376661,1731781842096,-588.80245589,9.589e-05,2]
[342376662,1731781842107,-500.0,9.589e-05,2]
[342376663,1731781842116,-500.0,9.589e-05,2]
[342376664,1731781842125,-500.0,9.589e-05,2]
[342376665,1731781842135,-500.0,9.589e-05,2]
[342376666,1731781842144,-500.0,9.589e-05,2]
[342376667,1731781842154,-500.0,9.589e-05,2]
[342376668,1731781842163,-500.0,9.589e-05,2]
[342376669,1731781842173,-547.16,9.589e-05,2]
[342376670,1731781842183,-500.0,9.589e-05,2]
[342376671,1731781842192,-500.0,9.589e-05,2]
[342376672,1731781842202,-445.15,9.589e-05,2]
[342376673,1731781842213,-500.0,9.589e-05,2]
[342376674,1731781842223,-500.0,9.589e-05,2]
[342376675,1731781842233,-500.0,9.589e-05,2]
[342376676,1731781842242,-500.0,9.589e-05,2]
[342376677,1731781842251,-637.38269118,9.589e-05,2]
[342376678,1731781842261,-500.0,9.589e-05,2]
[342376679,1731781842271,-500.0,9.589e-05,2]
[342376680,1731781842284,-500.0,9.589e-05,2]
[342376681,1731781842294,-500.0,9.589e-05,2]
[342376682,1731781842304,-500.0,9.589e-05,2]
[342376683,1731781842314,-500.0,9.589e-05,2]
[342376684,1731781842324,-500.0,9.589e-05,2]
[342376685,1731781842333,-500.0,9.589e-05,2]
[342376686,1731781842343,-500.0,9.589e-05,2]
[342376687,1731781842353,-500.0,9.589e-05,2]
[342376688,1731781842362,-500.0,9.589e-05,2]
[342376689,1731781842372,-500.0,9.589e-05,2]
[342376690,1731781842382,-500.0,9.589e-05,2]
[342376691,1731781842391,-500.0,9.589e-05,2]
[342376692,1731781842401,-500.0,9.589e-05,2]
[342376693,1731781842410,-500.0,9.589e-05,2]
[342376694,1731781842420,-500.0,9.589e-05,2]
[342376695,1731781842429,-500.0,9.589e-05,2]
[342376696,1731781842439,-500.0,9.589e-05,2]
[342376697,1731781842448,-500.0,9.589e-05,2]
[342376698,1731781842458,-500.0,9.589e-05,2]
[342376699,1731781842467,-500.0,9.589e-05,2]
[342376700,1731781842477,-500.0,9.589e-05,2]
[342376701,1731781842486,-547.03912136,9.589e-05,2]
[342376702,1731781842496,-500.0,9.589e-05,2]
[342376703,1731781842505,-500.0,9.589e-05,2]
[342376704,1731781842514,-500.0,9.589e-05,2]
[342376705,1731781842523,-500.0,9.589e-05,2]
[342376706,1731781842534,-500.0,9.589e-05,2]
[342376707,1731781842543,-500.0,9.589e-05,2]
[342376708,1731781842552,-500.0,9.589e-05,2]
[342376709,1731781842562,-500.0,9.589e-05,2]
[342376710,1731781842571,-500.0,9.589e-05,2]
[342376711,1731781842581,-500.0,9.589e-05,2]
[342376712,1731781842590,-500.0,9.589e-05,2]
[342376713,1731781842599,-500.0,9.589e-05,2]
[342376715,1731781842608,-500.0,9.589e-05,2]
[342376717,1731781842617,-500.0,9.589e-05,2]
[342376719,1731781842627,-500.0,9.589e-05,2]
[342376720,1731781842636,-158.96,9.589e-05,2]
[342376721,1731781842645,-500.0,9.589e-05,2]
[342376722,1731781842654,-500.0,9.589e-05,2]
[342376723,1731781842664,-500.0,9.589e-05,2]
[342376724,1731781842673,-500.0,9.589e-05,2]
[342376725,1731781842682,-500.0,9.589e-05,2]
[342376726,1731781842692,-515.88384847,9.589e-05,2]
[342376727,1731781842702,-342.0063755,9.589e-05,2]
[342376728,1731781842711,-500.0,9.589e-05,2]
[342376729,1731781842721,-500.0,9.589e-05,2]
[342376730,1731781842731,-500.0,9.589e-05,2]
[342376731,1731781842740,-500.0,9.589e-05,2]
[342376732,1731781842751,-500.0,9.589e-05,2]
[342376733,1731781842760,-500.0,9.589e-05,2]
[342376734,1731781842769,-500.0,9.589e-05,2]
[342376735,1731781842778,-500.0,9.589e-05,2]
[342376736,1731781842788,-500.0,9.589e-05,2]
[342376737,1731781842797,-500.0,9.589e-05,2]